bitfinex-derivatives/quotes_SOLF0:USTF0_20250905
["timestamp","ask_amount","ask_price","bid_price","bid_amount"]
[1757113993885,1.38072053,204.44,204.4,0.03147669]
[1757113994183,1.38072053,204.44,204.41,7.55]
[1757113994381,1.38072053,204.44,204.4,0.03147669]
[1757113994583,1.38072053,204.44,204.41,7.55]
[1757113994778,1.38072053,204.44,204.4,0.03147669]
[1757113994980,1.38072053,204.44,204.41,7.55]
[1757113995377,7.8,204.43,204.41,7.55]
[1757113995587,1.38072053,204.44,204.41,7.55]
[1757113995780,9.18072053,204.44,204.41,7.55]
[1757113996576,9.18072053,204.44,204.4,0.03147669]
[1757113997382,9.18072053,204.44,204.41,7.55]
[1757113998290,7.8,204.43,204.41,7.55]
[1757114009095,7.76,204.43,204.4,0.03147669]
[1757114009298,7.76,204.41,204.4,0.03147669]
[1757114009491,7.76,204.41,204.4,4.31259205]
[1757114009695,7.76,204.41,204.4,0.03147669]
[1757114010295,7.76,204.41,204.31,7.81]
[1757114010498,1.34960409,204.36,204.32,8.74698474]
[1757114010801,1.34960409,204.36,204.34,7.81]
[1757114011000,1.34960409,204.36,204.35,16.55698474]
[1757114012602,1.34960409,204.36,204.35,8.74698474]
[1757114012994,9.10960409,204.36,204.35,8.74698474]
[1757114015596,1.34960409,204.36,204.35,16.55698474]
[1757114017104,1.34960409,204.36,204.35,12.09374395]
[1757114017304,1.34960409,204.36,204.35,16.56466776]
[1757114018704,9.10960409,204.36,204.35,8.75466776]
[1757114020705,9.10960409,204.36,204.35,4.28374395]
[1757114020904,9.10960409,204.36,204.35,8.75271387]
[1757114022001,7.76,204.36,204.35,8.75271387]
[1757114024708,7.76,204.36,204.35,4.28374395]
[1757114024908,7.76,204.36,204.35,4.29567581]
[1757114032411,7.76,204.36,204.3,7.68]
[1757114032610,7.76,204.36,204.32,7.68]
[1757114032809,7.76,204.36,204.33,16.43167493]
[1757114033012,7.76,204.36,204.34,4.28971511]
[1757114033211,7.76,204.36,204.33,7.68]
[1757114033410,8.12,204.37,204.34,4.28946213]
[1757114033613,8.12,204.37,204.3,7.68]
[1757114033813,8.12,204.37,204.31,8.75115881]
[1757114034014,8.12,204.35,204.32,8.75115881]
[1757114034214,2.14595855,204.36,204.33,8.75115881]
[1757114034515,8.12,204.35,204.28,7.68]
[1757114034714,2.14595855,204.36,204.3,7.68]
[1757114034715,10.26595855,204.36,204.3,7.68]
[1757114035014,8.12,204.34,204.32,7.68]
[1757114035217,8.12,204.34,204.33,4.28999783]
[1757114037417,10.26595855,204.36,204.34,7.68]
[1757114038318,10.26595855,204.36,204.28,7.68]
[1757114038520,10.26595855,204.36,204.3,7.68]
[1757114038714,2.14595855,204.36,204.32,7.68]
[1757114039322,8.12,204.35,204.32,7.68]
[1757114039723,2.14595855,204.36,204.32,7.68]
[1757114040019,8.12,204.35,204.32,7.68]
[1757114041221,2.14595855,204.36,204.32,7.68]
[1757114041622,8.12,204.35,204.32,7.68]
[1757114043017,0.03744494,204.36,204.32,7.68]
[1757114043324,0.03744494,204.36,204.34,7.68]
[1757114043626,0.03744494,204.36,204.35,11.96776135]
[1757114044725,0.03744494,204.36,204.35,11.96706317]
[1757114045918,0.03744494,204.36,204.35,16.41920307]
[1757114065450,7.71,204.44,204.35,16.89920307]
[1757114065643,7.71,204.44,204.37,7.44]
[1757114065847,7.71,204.44,204.39,7.44]
[1757114066042,7.71,204.44,204.41,7.44]
[1757114066246,7.71,204.44,204.36,7.44]
[1757114066446,7.71,204.44,204.38,7.44]
[1757114066655,7.71,204.44,204.39,8.73256497]
[1757114066952,7.71,204.44,204.4,4.28963095]
[1757114067156,7.71,204.44,204.42,7.44]
[1757114067451,7.71,204.45,204.36,7.44]
[1757114067653,7.71,204.45,204.38,7.44]
[1757114067852,7.71,204.45,204.39,8.72950956]
[1757114068147,5.50117156,204.46,204.4,4.28813007]
[1757114068347,5.50117156,204.46,204.35,4.4034]
[1757114068554,7.71,204.45,204.37,7.44]
[1757114068749,7.71,204.45,204.39,7.44]
[1757114068953,7.71,204.45,204.4,4.28727926]
[1757114069154,7.71,204.45,204.36,7.44]
[1757114069349,7.71,204.45,204.38,7.44]
[1757114069545,5.50117156,204.47,204.39,8.72794872]
[1757114069852,7.71,204.46,204.4,11.72740598]
[1757114070049,7.71,204.46,204.4,7.44]
[1757114071248,13.21117156,204.46,204.4,7.44]
[1757114074457,7.71,204.46,204.4,7.44]
[1757114074855,2.10851361,204.47,204.41,4.28569415]
[1757114075056,7.71,204.46,204.38,7.44]
[1757114075257,7.71,204.46,204.4,7.44]
[1757114075451,2.10851361,204.47,204.41,4.28559696]
[1757114075654,9.81851361,204.47,204.38,7.44]
[1757114075955,9.81851361,204.47,204.4,7.44]
[1757114076256,9.81851361,204.47,204.41,4.28481993]
[1757114076457,9.81851361,204.47,204.4,7.44]
[1757114076658,9.81851361,204.47,204.41,4.28445135]
[1757114076855,9.81851361,204.47,204.39,7.44]
[1757114077065,9.81851361,204.47,204.41,7.44]
[1757114083473,2.10851361,204.44,204.31,40.82851361]
[1757114083668,7.71,204.43,204.33,7.44]
[1757114083869,7.71,204.43,204.35,7.44]
[1757114084176,7.71,204.43,204.36,8.72691931]
[1757114084366,7.71,204.43,204.37,8.72691931]
[1757114084567,2.10851361,204.44,204.32,4.4041]
[1757114084568,2.10851361,204.44,204.38,4.28685468]
[1757114084773,7.71,204.43,204.39,4.28685468]
[1757114085075,7.71,204.43,204.36,7.44]
[1757114085263,7.71,204.43,204.37,8.74574646]
[1757114085467,1.34902648,204.4,204.38,4.3054057]
[1757114085767,9.05902648,204.4,204.39,4.3054057]
[1757114096879,7.71,204.4,204.39,11.7154057]
[1757114097381,1.34902648,204.42,204.39,11.7154057]
[1757114097579,7.6,204.41,204.39,7.41]
[1757114098479,1.34902648,204.42,204.39,7.41]
[1757114098679,7.6,204.41,204.39,7.41]
[1757114100382,1.34902648,204.42,204.39,7.41]
[1757114100581,7.6,204.41,204.39,7.41]
[1757114101377,1.34902648,204.42,204.39,7.41]
[1757114101581,7.6,204.41,204.39,7.41]
[1757114102684,1.34902648,204.42,204.35,1.34902648]
[1757114102885,1.34902648,204.42,204.36,8.77589848]
[1757114103187,7.6,204.41,204.38,7.41]
[1757114103384,7.6,204.41,204.39,4.30750169]
[1757114103585,7.6,204.41,204.38,7.41]
[1757114103785,7.6,204.41,204.39,4.30748895]
[1757114103986,7.6,204.41,204.38,7.41]
[1757114104189,7.6,204.41,204.39,4.30740468]
[1757114104387,7.6,204.41,204.4,4.30740468]
[1757114105187,1.34902648,204.42,204.41,7.41]
[1757114105685,1.34902648,204.44,204.41,7.41]
[1757114105885,7.6,204.43,204.41,7.41]
[1757114106383,7.6,204.43,204.38,7.41]
[1757114106589,1.34902648,204.42,204.39,16.18580792]
[1757114106784,5.50117156,204.45,204.4,4.30745975]
[1757114106985,14.45019804,204.47,204.42,7.41]
[1757114107183,14.45019804,204.47,204.41,8.77420192]
[1757114107184,14.45019804,204.47,204.43,4.30745975]
[1757114107386,6.85019804,204.47,204.44,7.41]
[1757114107587,6.88141879,204.47,204.44,7.41]
[1757114107886,7.6,204.46,204.44,7.41]
[1757114115091,0.03122075,204.47,204.46,7.41]
[1757114121900,7.73,204.46,204.43,8.13]
[1757114122106,9.07902648,204.45,204.43,8.13]
[1757114124305,1.34902648,204.45,204.43,8.13]
[1757114124600,1.34902648,204.45,204.42,0.03667428]
[1757114124799,1.34902648,204.45,204.43,8.13]
[1757114125006,1.34902648,204.45,204.42,0.03667428]
[1757114125508,1.34902648,204.45,204.43,8.13]
[1757114125709,1.34902648,204.45,204.42,0.03667428]
[1757114126208,1.34902648,204.45,204.43,8.13]
[1757114127109,1.34902648,204.45,204.42,0.03667428]
[1757114127406,1.34902648,204.45,204.43,8.13]
[1757114128608,9.07902648,204.46,204.43,8.13]
[1757114128805,1.34902648,204.46,204.43,8.13]
[1757114129006,0.03122075,204.47,204.43,8.13]
[1757114130610,0.03122075,204.47,204.42,1.38570076]
[1757114130806,0.03122075,204.47,204.44,8.13]
[1757114131010,0.03122075,204.47,204.43,8.13]
[1757114131211,0.03122075,204.47,204.42,1.38570076]
[1757114131405,0.03122075,204.47,204.43,4.28440012]
[1757114131706,0.03122075,204.47,204.42,1.38570076]
[1757114131910,0.03122075,204.47,204.43,4.28413578]
[1757114132112,0.03122075,204.47,204.43,8.13]
[1757114132707,0.03122075,204.47,204.42,0.03667428]
[1757114132904,0.03122075,204.47,204.43,4.28540372]
[1757114133104,0.03122075,204.47,204.43,8.13]
[1757114133310,7.76122075,204.47,204.42,0.03667428]
[1757114133609,9.11024723,204.47,204.45,8.13]
[1757114140915,1.38024723,204.47,204.43,8.13]
[1757114141116,9.07902648,204.45,204.42,0.03667428]
[1757114141322,9.07902648,204.43,204.42,0.03667428]
[1757114141521,9.07902648,204.43,204.42,4.3285683]
[1757114142611,1.34902648,204.43,204.42,4.3285683]
[1757114142920,1.34902648,204.43,204.42,12.4585683]
[1757114144121,1.34902648,204.43,204.42,8.16667428]
[1757114144315,1.34902648,204.45,204.42,4.31634729]
[1757114144515,1.34902648,204.45,204.43,8.13]
[1757114144720,9.07902648,204.45,204.43,8.13]
[1757114145518,7.73,204.45,204.43,8.13]
[1757114146120,7.73,204.46,204.43,8.13]
[1757114147319,7.73,204.46,204.44,4.28384674]
[1757114147519,7.73,204.46,204.43,8.13]
[1757114147721,7.73,204.46,204.44,4.2838326]
[1757114148025,7.73,204.46,204.43,8.13]
[1757114148223,7.73,204.46,204.44,4.2838326]
[1757114148425,7.73,204.46,204.43,8.13]
[1757114148722,7.73,204.46,204.44,4.28456337]
[1757114148924,7.73,204.46,204.43,8.13]
[1757114149125,7.73,204.46,204.44,4.28456337]
[1757114149344,7.73,204.46,204.43,8.13]
[1757114149624,0.03122075,204.47,204.45,8.11]
[1757114149829,0.03122075,204.47,204.46,16.86656315]
[1757114151624,5.50117156,204.54,204.47,8.11]
[1757114151928,5.50117156,204.55,204.49,8.11]
[1757114152123,12.91117156,204.55,204.5,4.28573135]
[1757114152331,7.41,204.52,204.45,8.11]
[1757114152529,7.41,204.52,204.46,8.75128996]
[1757114152729,7.41,204.52,204.45,8.11]
[1757114152730,12.91117156,204.52,204.47,4.28282162]
[1757114153030,12.91117156,204.52,204.46,0.03221741]
[1757114153324,7.41,204.51,204.47,4.2834715]
[1757114153522,7.41,204.51,204.46,0.03221741]
[1757114153828,5.50117156,204.52,204.47,4.28309653]
[1757114154028,7.41,204.51,204.46,0.03221741]
[1757114154228,7.41,204.51,204.47,4.28309653]
[1757114154526,5.50117156,204.52,204.46,0.03221741]
[1757114154730,5.50117156,204.52,204.47,4.28310231]
[1757114154924,7.41,204.51,204.46,0.03221741]
[1757114155227,5.50117156,204.52,204.47,12.39310231]
[1757114155429,7.41,204.51,204.47,8.11]
[1757114155929,5.50117156,204.52,204.47,8.11]
[1757114156125,7.41,204.51,204.47,8.11]
[1757114156326,5.50117156,204.52,204.47,8.11]
[1757114156923,7.41,204.51,204.47,8.11]
[1757114157127,7.60807654,204.52,204.47,8.11]
[1757114157530,7.41,204.51,204.47,8.11]
[1757114157729,7.60807654,204.52,204.47,8.11]
[1757114157923,7.41,204.51,204.47,8.11]
[1757114158328,7.60807654,204.52,204.47,8.11]
[1757114158729,7.41,204.51,204.46,0.03221741]
[1757114158925,7.60807654,204.52,204.47,4.28294963]
[1757114159130,7.41,204.51,204.46,0.03221741]
[1757114160226,7.60807654,204.52,204.46,0.03221741]
[1757114160725,7.41,204.51,204.48,8.11]
[1757114160924,7.41,204.51,204.47,4.28504774]
[1757114160925,7.41,204.51,204.46,8.14221741]
[1757114161127,7.41,204.51,204.48,8.11]
[1757114161826,7.60807654,204.52,204.48,8.11]
[1757114162031,7.41,204.51,204.48,8.11]
[1757114162233,2.10690498,204.52,204.48,8.11]
[1757114162432,7.41,204.51,204.48,8.11]
[1757114162835,2.10690498,204.52,204.48,8.11]
[1757114163526,7.41,204.51,204.48,8.11]
[1757114163736,5.50117156,204.53,204.47,8.11]
[1757114163933,15.01807654,204.55,204.49,8.11]
[1757114164137,15.01807654,204.55,204.5,4.28214763]
[1757114164332,15.01807654,204.55,204.46,0.03221741]
[1757114164532,15.01807654,204.55,204.48,8.11]
[1757114164836,15.01807654,204.55,204.5,8.11]
[1757114165137,9.51690498,204.55,204.49,8.11]
[1757114165328,7.41,204.55,204.49,8.11]
[1757114166737,15.01807654,204.55,204.48,0.03211602]
[1757114167132,12.91117156,204.55,204.48,0.03211602]
[1757114167333,15.01807654,204.55,204.48,0.03211602]
[1757114167937,7.41,204.55,204.49,4.27957567]
[1757114168138,7.41,204.55,204.48,8.14211602]
[1757114168439,7.41,204.55,204.49,4.27956457]
[1757114168642,7.41,204.55,204.48,8.14211602]
[1757114168836,7.41,204.55,204.49,4.27971556]
[1757114169036,7.41,204.55,204.48,8.14211602]
[1757114169640,7.41,204.55,204.49,4.27914777]
[1757114169940,7.41,204.55,204.48,8.14211602]
[1757114170140,7.41,204.55,204.49,4.27900139]
[1757114170437,7.41,204.52,204.48,0.03211602]
[1757114170633,2.10690498,204.53,204.48,0.03211602]
[1757114170831,5.50117156,204.54,204.48,0.03211602]
[1757114171040,2.10690498,204.52,204.48,8.14211602]
[1757114171240,7.41,204.51,204.48,8.14211602]
[1757114172239,2.10690498,204.52,204.49,8.11]
[1757114172442,9.51690498,204.52,204.49,8.11]
[1757114175236,7.41,204.54,204.48,8.14211602]
[1757114179148,2.10690498,204.55,204.49,4.27125457]
[1757114179347,7.73,204.54,204.48,7.57211602]
[1757114179548,2.10690498,204.55,204.48,0.03211602]
[1757114179743,7.73,204.54,204.48,7.57211602]
[1757114183945,5.50117156,204.56,204.48,7.57211602]
[1757114184146,15.33807654,204.58,204.5,7.54]
[1757114184349,15.33807654,204.58,204.51,4.27068987]
[1757114184550,15.33807654,204.58,204.5,7.54]
[1757114184755,15.33807654,204.58,204.51,4.26914645]
[1757114184951,15.33807654,204.58,204.5,7.54]
[1757114184952,15.33807654,204.58,204.52,0.03647943]
[1757114187154,5.50117156,204.57,204.52,0.03647943]
[1757114187746,7.73,204.56,204.52,0.03647943]
[1757114188045,7.73,204.56,204.52,7.57647943]
[1757114188654,5.50117156,204.57,204.52,7.57647943]
[1757114189158,7.73,204.56,204.52,7.57647943]
[1757114189554,5.50117156,204.57,204.52,7.57647943]
[1757114189757,7.73,204.56,204.52,7.57647943]
[1757114190255,5.50117156,204.57,204.52,7.57647943]
[1757114190855,7.73,204.56,204.52,7.57647943]
[1757114191854,5.50117156,204.57,204.52,7.57647943]
[1757114192054,7.73,204.56,204.52,7.57647943]
[1757114192259,5.50117156,204.57,204.52,7.57647943]
[1757114193146,7.73,204.55,204.52,7.57647943]
[1757114196059,7.73,204.55,204.53,7.54]
[1757114203166,7.73,204.56,204.53,7.54]
[1757114203367,7.60807654,204.57,204.53,7.54]
[1757114203761,7.73,204.56,204.53,7.54]
[1757114204062,7.60807654,204.57,204.53,7.54]
[1757114204265,7.73,204.56,204.53,7.54]
[1757114204868,7.60807654,204.57,204.53,7.54]
[1757114205068,7.73,204.56,204.53,7.54]
[1757114205268,7.60807654,204.57,204.53,7.54]
[1757114206060,7.73,204.56,204.53,7.54]
[1757114206465,7.60807654,204.57,204.53,7.54]
[1757114206671,7.73,204.56,204.53,7.54]
[1757114207266,7.60807654,204.57,204.53,7.54]
[1757114207468,1.34713462,204.55,204.53,7.54]
[1757114207669,9.07713462,204.55,204.53,7.54]
[1757114208880,5.50117156,204.57,204.53,7.45]
[1757114209281,5.50117156,204.57,204.52,0.03647943]
[1757114209477,5.50117156,204.57,204.54,7.45]
[1757114209678,5.50117156,204.57,204.52,0.03647943]
[1757114209877,13.12117156,204.57,204.54,7.45]
[1757114210071,13.12117156,204.57,204.52,0.03647943]
[1757114210274,13.12117156,204.57,204.54,7.45]
[1757114210679,13.12117156,204.57,204.52,0.03647943]
[1757114210883,13.12117156,204.57,204.53,4.28383427]
[1757114211185,5.50117156,204.57,204.53,7.45]
[1757114211383,5.50117156,204.57,204.52,0.03647943]
[1757114211681,5.50117156,204.57,204.53,4.28370357]
[1757114211885,5.50117156,204.57,204.52,0.03647943]
[1757114212088,6.84830618,204.58,204.54,7.45]
[1757114212385,14.46830618,204.58,204.52,0.03647943]
[1757114212584,7.62,204.57,204.54,7.45]
[1757114213086,7.62,204.57,204.53,7.45]
[1757114213292,7.62,204.57,204.55,7.45]
[1757114213579,7.62,204.57,204.52,0.03647943]
[1757114213781,7.62,204.57,204.53,4.28266517]
[1757114213985,7.62,204.57,204.55,7.45]
[1757114219283,7.62,204.57,204.53,7.45]
[1757114219591,7.62,204.57,204.55,7.45]
[1757114222489,6.84830618,204.58,204.53,7.45]
[1757114222685,1.34713462,204.58,204.55,7.45]
[1757114222891,5.50117156,204.59,204.53,8.79713462]
[1757114223091,5.50117156,204.6,204.55,7.45]
[1757114223294,5.50117156,204.6,204.54,7.45]
[1757114223483,5.50117156,204.6,204.55,4.28225016]
[1757114223791,5.50117156,204.6,204.54,7.45]
[1757114223980,13.12117156,204.6,204.55,4.28233367]
[1757114224186,13.12117156,204.6,204.54,7.45]
[1757114224385,13.12117156,204.6,204.55,4.28197439]
[1757114224688,13.12117156,204.6,204.54,7.45]
[1757114224889,7.62,204.59,204.56,7.45]
[1757114225092,7.62,204.59,204.54,7.45]
[1757114225390,7.62,204.59,204.55,4.28180716]
[1757114225587,7.62,204.59,204.54,7.45]
[1757114225893,7.62,204.59,204.55,4.28206821]
[1757114226094,7.62,204.59,204.54,7.45]
[1757114226391,7.62,204.59,204.56,7.45]
[1757114226596,8.96713462,204.59,204.54,7.45]
[1757114226790,8.96713462,204.59,204.55,4.28187194]
[1757114226996,8.96713462,204.59,204.56,4.28187194]
[1757114227298,8.96713462,204.59,204.53,1.34713462]
[1757114227299,8.96713462,204.59,204.57,7.45]
[1757114233294,7.62,204.59,204.57,7.45]
[1757114233500,1.34713462,204.6,204.54,7.45]
[1757114233701,8.96713462,204.6,204.56,7.45]
[1757114233901,8.96713462,204.6,204.54,7.45]
[1757114234101,8.96713462,204.6,204.53,1.34713462]
[1757114234102,8.96713462,204.6,204.55,4.28118933]
[1757114234305,8.96713462,204.6,204.57,7.45]
[1757114234803,5.50117156,204.61,204.54,7.45]
[1757114235003,8.96713462,204.6,204.57,7.45]
[1757114235604,7.62,204.6,204.57,7.45]
[1757114235907,8.96713462,204.6,204.56,0.03554546]
[1757114236094,7.62,204.59,204.57,7.45]
[1757114240412,6.84830618,204.6,204.56,0.03554546]
[1757114240709,7.88,204.59,204.56,7.94554546]
[1757114241410,7.88,204.59,204.57,7.91]
[1757114242608,1.34713462,204.58,204.57,7.91]
[1757114244709,7.88,204.57,204.56,0.03554546]
[1757114246611,9.22713462,204.57,204.56,0.03554546]
[1757114248312,14.72830618,204.57,204.56,0.03554546]
[1757114250415,1.34713462,204.57,204.56,7.94554546]
[1757114251018,9.22713462,204.57,204.56,7.94554546]
[1757114251415,9.22713462,204.57,204.56,0.03554546]
[1757114260624,14.72830618,204.57,204.56,0.03554546]
[1757114261621,9.22713462,204.57,204.56,0.03554546]
[1757114263126,14.72104905,204.57,204.56,0.03554546]
[1757114267428,15.47904168,204.57,204.56,0.03554546]
[1757114267635,9.98512725,204.57,204.47,7.91]
[1757114267931,7.88,204.51,204.48,4.2953668]
[1757114268130,7.88,204.48,204.43,7.91]
[1757114268325,2.10512725,204.49,204.44,8.78283138]
[1757114268628,7.51,204.48,204.45,4.29485222]
[1757114268831,2.10512725,204.49,204.43,7.91]
[1757114269026,2.10512725,204.49,204.44,8.78357316]
[1757114269225,2.10512725,204.49,204.43,7.91]
[1757114269424,2.10512725,204.49,204.44,4.29269737]
[1757114269628,7.51,204.48,204.43,7.91]
[1757114269931,2.10512725,204.49,204.44,4.29271362]
[1757114270133,7.51,204.48,204.43,7.91]
[1757114270330,2.10512725,204.49,204.44,4.2908927]
[1757114270632,7.51,204.48,204.43,7.91]
[1757114270829,7.51,204.48,204.44,4.2908927]
[1757114271130,2.10512725,204.49,204.43,7.91]
[1757114271724,7.51,204.48,204.43,7.91]
[1757114271924,2.10512725,204.49,204.43,7.91]
[1757114272326,7.51,204.48,204.4,7.88]
[1757114272532,5.49286082,204.52,204.4,7.88]
[1757114272533,7.51,204.45,204.41,4.28823183]
[1757114272732,7.51,204.45,204.4,7.88]
[1757114272927,2.10512725,204.46,204.41,4.28878286]
[1757114273133,7.51,204.45,204.4,7.88]
[1757114273436,2.10512725,204.46,204.4,7.88]
[1757114273830,7.51,204.45,204.4,7.88]
[1757114274324,2.10512725,204.46,204.4,7.88]
[1757114274836,7.51,204.45,204.36,7.88]
[1757114275035,7.51,204.45,204.38,7.88]
[1757114275335,7.51,204.49,204.4,7.88]
[1757114275531,7.51,204.49,204.42,7.88]
[1757114282047,7.51,204.47,204.37,7.88]
[1757114282243,7.51,204.47,204.39,7.88]
[1757114282542,7.51,204.47,204.4,4.27914537]
[1757114282743,7.51,204.47,204.39,7.88]
[1757114283043,7.51,204.47,204.4,4.28030093]
[1757114283244,7.51,204.47,204.39,7.88]
[1757114283443,7.51,204.47,204.4,4.28015029]
[1757114283646,7.51,204.47,204.39,7.88]
[1757114283840,7.51,204.47,204.4,4.28015029]
[1757114284040,7.51,204.47,204.39,7.88]
[1757114284241,7.51,204.47,204.4,4.28032843]
[1757114284444,7.51,204.47,204.39,7.88]
[1757114284647,7.51,204.47,204.41,7.88]
[1757114289956,2.10512725,204.49,204.41,7.88]
[1757114290356,2.10512725,204.49,204.43,7.88]
[1757114295458,7.51,204.48,204.43,7.88]
[1757114295763,7.51,204.45,204.37,7.88]
[1757114296054,7.51,204.45,204.39,7.88]
[1757114296260,7.51,204.45,204.4,4.29045627]
[1757114296550,7.51,204.45,204.42,7.88]
[1757114296753,7.51,204.45,204.36,19.56]
[1757114296754,2.10512725,204.46,204.36,19.56]
[1757114296958,2.10512725,204.46,204.38,7.88]
[1757114297259,2.10512725,204.46,204.4,7.88]
[1757114297457,2.10512725,204.46,204.41,4.29103018]
[1757114297759,2.10512725,204.46,204.37,7.88]
[1757114297952,2.10512725,204.46,204.39,7.88]
[1757114298256,2.10512725,204.46,204.4,4.29074769]
[1757114298447,7.9,204.45,204.42,7.42]
[1757114299455,7.9,204.45,204.37,7.42]
[1757114299654,7.9,204.45,204.38,8.75219661]
[1757114299850,7.9,204.45,204.39,8.75219661]
[1757114300047,2.10512725,204.46,204.4,4.29209805]
[1757114300250,7.9,204.45,204.36,7.42]
[1757114300448,7.9,204.45,204.38,7.42]
[1757114300759,7.9,204.45,204.4,7.42]
[1757114300959,7.9,204.45,204.36,7.42]
[1757114301158,7.9,204.45,204.38,7.42]
[1757114301458,7.9,204.45,204.39,8.75515622]
[1757114301655,7.9,204.5,204.41,7.42]
[1757114301963,10.00512725,204.47,204.41,7.42]
[1757114304056,10.00512725,204.47,204.42,4.29564554]
[1757114304252,2.10512725,204.47,204.37,7.42]
[1757114304457,2.10512725,204.47,204.39,7.42]
[1757114304756,2.10512725,204.47,204.41,7.42]
[1757114304957,2.10512725,204.47,204.42,4.29703918]
[1757114305260,2.10512725,204.47,204.41,7.42]
[1757114305456,2.10512725,204.47,204.43,7.42]
[1757114305457,7.9,204.46,204.43,7.42]
[1757114308163,7.9,204.46,204.38,7.42]
[1757114308464,2.10512725,204.47,204.4,7.42]
[1757114308659,2.10512725,204.47,204.41,8.77545913]
[1757114308859,10.00512725,204.47,204.42,4.30269781]
[1757114309059,10.00512725,204.47,204.43,4.30269781]
[1757114309260,10.00512725,204.47,204.44,7.42]
[1757114312264,10.00512725,204.47,204.45,4.31129204]
[1757114312465,10.00512725,204.47,204.44,7.42]
[1757114312661,10.00512725,204.47,204.45,4.31129204]
[1757114312863,10.00512725,204.47,204.44,7.42]
[1757114313062,10.00512725,204.47,204.45,4.31129204]
[1757114313261,10.00512725,204.47,204.44,7.42]
[1757114313457,10.00512725,204.47,204.45,4.31161414]
[1757114313661,2.10512725,204.47,204.44,7.42]
[1757114313862,2.10512725,204.47,204.45,4.31161414]
[1757114314065,10.00512725,204.47,204.46,4.31161414]
[1757114315561,10.00512725,204.47,204.44,7.42]
[1757114315868,7.9,204.46,204.45,4.31150243]
[1757114317866,2.10512725,204.49,204.45,8.79273057]
[1757114318070,2.10512725,204.49,204.47,7.42]
[1757114318474,10.00512725,204.49,204.47,7.42]
[1757114324775,10.00512725,204.49,204.48,4.30821708]
[1757114324976,13.39286082,204.52,204.49,7.42]
[1757114325173,2.10512725,204.51,204.42,7.42]
[1757114325479,2.10512725,204.51,204.44,7.42]
[1757114325778,2.10512725,204.51,204.45,8.7866289]
[1757114325983,10.00512725,204.51,204.47,7.42]
[1757114326277,10.00512725,204.51,204.48,11.72753993]
[1757114326572,10.00512725,204.51,204.49,4.30642149]
[1757114326775,10.00512725,204.51,204.48,7.42]
[1757114327076,10.00512725,204.51,204.49,4.306553]
[1757114327284,10.00512725,204.51,204.48,7.42]
[1757114327475,10.00512725,204.51,204.49,4.30588816]
[1757114327675,10.00512725,204.51,204.48,7.42]
[1757114327975,7.9,204.5,204.49,4.30590447]
[1757114328179,7.9,204.5,204.48,7.42]
[1757114329476,1.3480044,204.49,204.48,7.42]
[1757114329676,1.3480044,204.49,204.48,11.72494383]
[1757114329976,1.3480044,204.49,204.48,11.72496013]
[1757114331678,1.3480044,204.49,204.48,7.42]
[1757114332181,1.3480044,204.49,204.4,25.0580044]
[1757114332378,1.3480044,204.47,204.42,7.51]
[1757114332675,1.3480044,204.47,204.43,8.78058673]
[1757114332978,1.3480044,204.47,204.44,8.78058673]
[1757114333176,1.3480044,204.47,204.46,7.51]
[1757114333376,1.3480044,204.47,204.46,16.29058673]
[1757114334170,1.3480044,204.47,204.46,11.98579617]
[1757114334478,1.3480044,204.47,204.46,16.29071751]
[1757114334678,9.2780044,204.47,204.46,4.3048547]
[1757114337179,9.2780044,204.47,204.4,7.51]
[1757114337376,1.3480044,204.44,204.41,16.2962852]